Workbook

Sheet ISPT-INFO-IMSS TRABAJADOR 2022
B2: Calculadora de Nominas 2022
B5: DATOS
B6: Promedio de dias al mes | C6: 30.4 | M6: UMA | N6: $89.62
B7: Dias Laborados | C7: 15 | I7: ( = ) | J7: Ingresos Mensuales Acumulables | K7: =(C9/C7)*C6 -> $5,255.25 | M7: Tope 3 salarios minimos | N7: =N6*3 -> $268.86
B8: Salario Diario | C8: 172.87 | I8: ( - ) | J8: Limite Inferior | K8: =VLOOKUP(K7,'TARIFAS ISPT, SUBSIDO AL EMPLEO'!B5:E15,1) -> $644.59
B9: Ingresos en ese Periodo | C9: =C7*C8 -> $2,593.05 | I9: ( = ) | J9: Excedente sobre limite inferior | K9: =K7-K8 -> $4,610.66
I10: ( * ) | J10: Tasa aplicable | K10: =VLOOKUP(K7,'TARIFAS ISPT, SUBSIDO AL EMPLEO'!B5:E15,4) -> 6.40% | M10: Invalidez y vida | N10: 0.625%
B11: TIPO DE DESCUENTO | C11: 1 | J11: Impuesto marginal | K11: =K9*K10 -> $295.08 | M11: Cesantía y vejez | N11: 1.125%
C12: 1 | D12: VECES SMGDF | I12: ( + ) | J12: Cuota Fija | K12: =VLOOKUP(K7,'TARIFAS ISPT, SUBSIDO AL EMPLEO'!B5:E15,3) -> $12.38 | M12: Prestaciones en Efectivo | N12: 0.250%
C13: 2 | D13: CUOTA FIJA | I13: ( = ) | J13: ISR Causado | K13: =K12+K11 -> $307.46 | M13: Gastos Médicos | N13: 0.375%
C14: 3 | D14: PORCENTAJE | M14: Excedente =
J15: DETERMINACION DEL SUBSIDIO
B16: Prestaciones | M16: Total% Retención = | N16: =SUM(N10:N13) -> 2.375%
B17: Dias de Vacaciones | C17: 6 | I17: ( = ) | J17: ISPT DEL PERIODO | K17: =(K13/C6)*C7 -> $151.71
B18: % de Prima Vacacional | C18: 25.00% | I18: ( - ) | J18: SUBSIDIO PARA EL EMPLEO | K18: =VLOOKUP(K7,'TARIFAS ISPT, SUBSIDO AL EMPLEO'!G5:I15,3)/C6*C7 -> $160.30
B19: Dias de Aguinaldo | C19: 30 | I19: ( = ) | J19: ISR A CARGO | K19: =IF(K17>K18,K17-K18,0) -> 0 | M19: Retención IMSS
I20: ( = ) | J20: SUBSIDIO A FAVOR | K20: =IF(K17<K18,K18-K17,0) -> $8.59 | M20: Salario Base de Cotización | N20: =C21 -> $180.68
B21: SALARIO DIARIO INTEGRADO (PRESTACIONES DE LEY) | C21: ='SBC 2022'!E3 -> $180.68 | M21: (x) No. De días cotizados | N21: =C7 -> 15
B22: VALOR DEL DESCUENTO (si tiene Infonavit) | C22: 0.0000 | M22: (=) Salario base cotización = | N22: =N20*N21 -> $2,710.27
M23: (x) % retención IMSS= | N23: =N16 -> 2.375%
M24: (=) Ret. Inic. IMSS = | N24: =N22*N23 -> $64.37
B25: DESGLOSE DEL PERIODO
M26: Mayor a 3 SMDF | N26: =IF(N20>N7,"SI","NO") -> NO
B27: SUELDO | C27: =C9 -> $2,593.05
B28: ISPT DEL PERIODO ANTES DEL SUBSIDIO | C28: =K17 -> $151.71 | M28: SDI – 3 Salarios minimos | N28: =IF(N26="SI",N20-N7,0) -> 0
B29: SUBSIDO PARA EL EMPLEO | C29: =K18 -> $160.30 | M29: (x) No. De días cotizados | N29: =N21 -> 15
B30: =IF(C30>0,"ISPT A CARGO ","SUBSIDIO A FAVOR") -> SUBSIDIO A FAVOR | C30: =C28-C29 -> -$8.59 | M30: (=) Salario base cotización excedente | N30: =N28*N29 -> 0
B31: IMSS | C31: =N35 -> $64.37 | M31: X % sobre excedente | N31: =0.004 -> 0.40%
B32: RETENCION INFONAVIT | C32: =DATOS!D25 -> 0 | M32: (=) IMSS sobre excedente | N32: =N30*N31 -> 0
B33: NETO A PAGAR | C33: =C27-C30-C31-C32 -> $2,537.27 | M33: (+) Ret. Inic. IMSS | N33: =N24 -> $64.37
M35: Total Retención IMSS. | N35: =+N32+N33 -> $64.37
B36: Nota: Rellena solo los espacios en azul

Sheet DATOS
B2: DATOS GENERALES
B4: DIAS EN NOMINA | C4: ='ISPT-INFO-IMSS TRABAJADOR 2022'!C7:D7 -> 15
B5: Salario Minimo 2021 | C5: $172.87 | D5: $80.04
B6: UMA 2021 (DOF 07.01.2021) | C6: $96.22
B7: VALOR DE SEGURO DE VIVIENDA | C7: $0.00
B8: TIPO DE DESCUENTO | C8: ='ISPT-INFO-IMSS TRABAJADOR 2022'!C11:D11 -> 1
C9: 1 | D9: VECES SMGDF
C10: 2 | D10: CUOTA FIJA
C11: 3 | D11: PORCENTAJE
B12: SALARIO BASE DE COTIZACION | C12: ='ISPT-INFO-IMSS TRABAJADOR 2022'!C21:D21 -> 180.6846712
B13: VALOR DEL DESCUENTO | C13: ='ISPT-INFO-IMSS TRABAJADOR 2022'!C22:D22 -> 0.0000
B14: PERIODO | C14: FALTAS | D14: AMORTIZACION MENSUAL
B15: BIM 1 | D15: =VLOOKUP(C8,result,3) -> 0.00
B16: BIM 2 | D16: =VLOOKUP(C8,result,4) -> 0.00
B17: BIM 3 | D17: =VLOOKUP(C8,result,5) -> 0.00
B18: BIM 4 | D18: =VLOOKUP(C8,result,6) -> 0.00
B19: BIM 5 | D19: =VLOOKUP(C8,result,7) -> 0.00
B20: BIM 6 | D20: =VLOOKUP(C8,result,8) -> 0.00
B22: AMORTIZACION ANUAL | D22: =SUM(D15:D21) -> 0.00 | F22: =IF(15,0,D23) -> 0
B23: RETENCION EN NOMINA EN BASE A DIAS | D23: =VLOOKUP(C8,result,2)*C4 -> 3.81
D25: =IF(D23>3.82,D23,0) -> 0.00

Sheet SBC 2022
C1: Salario Base de Cotización
A2: Datos generales para la integración | B2: Importes | C2: Fija | D2: Variable | E2: Total
A3: Salario minimo general | B3: =DATOS!C5 -> $172.87 | C3: =IF(AND(B4<>"",ISNUMBER(E10)),(B4*E10),0) -> 180.68 | D3: 0 | E3: =SUMIF(C3:D3,">0") -> 180.68
A4: Cuota diaria del trabajador | B4: ='ISPT-INFO-IMSS TRABAJADOR 2022'!C8 -> $172.87
A5: Días de vacaciones | B5: 6 | D5: Factor de integración
A6: Prima vacacional % | B6: ='ISPT-INFO-IMSS TRABAJADOR 2022'!C18 -> 25% | D6: Prima vacacional | E6: =IF(AND(B5<>"",B6<>""),(B5/365)*B6,"") -> 0.0041
A7: Días de aguinaldo | B7: 15 | C7: más: | D7: Por aguinaldo | E7: =IF(B7<>"",B7/365,"") -> 0.0411
A8: Area geografica del contribuyente | B8: UNICA | C8: igual: | D8: Total | E8: =IF(AND(ISNUMBER(E6),ISNUMBER(E7)),E6+E7,"") -> 0.0452
C9: más: | D9: Unidad | E9: 1.00
A10: Otros conceptos que integran el SBC | C10: igual: | D10: Factor | E10: =IF(ISNUMBER(E8),E8+E9,"") -> 1.0452

Sheet TARIFAS ISPT, SUBSIDO AL EMPLEO
B2: TABLAS Y TARIFAS MENSUAL 2022 | G2: TABLA DE SUBSIDIO PARA EL EMPLEO 2022
B4: Limite inferior | C4: Limite Superior | D4: Cuota fija | E4: % | G4: Limite inferior | H4: Limite Superior | I4: Cuota fija
B5: $0.01 | C5: $644.58 | D5: 0 | E5: 1.92% | G5: $0.01 | H5: $1,768.96 | I5: $407.02
B6: $644.59 | C6: $5,470.92 | D6: $12.38 | E6: 6.40% | G6: $1,768.97 | H6: $2,653.38 | I6: $406.83
B7: $5,470.93 | C7: $9,614.66 | D7: $321.26 | E7: 10.88% | G7: $2,653.39 | H7: $3,472.84 | I7: $406.62
B8: $9,614.67 | C8: $11,176.62 | D8: $772.10 | E8: 16.00% | G8: $3,472.85 | H8: $3,537.87 | I8: $392.77
B9: $11,176.63 | C9: $13,381.47 | D9: $1,022.01 | E9: 17.92% | G9: $3,537.88 | H9: $4,446.15 | I9: $382.46
B10: $13,381.48 | C10: $26,988.50 | D10: $1,417.12 | E10: 21.36% | G10: $4,446.16 | H10: $4,717.18 | I10: $354.23
B11: $26,988.51 | C11: $42,537.58 | D11: $4,323.58 | E11: 23.52% | G11: $4,717.19 | H11: $5,335.42 | I11: $324.87
B12: $42,537.59 | C12: $81,211.25 | D12: $7,980.73 | E12: 30.00% | G12: $5,335.43 | H12: $6,224.67 | I12: $294.63
B13: $81,211.26 | C13: $108,281.67 | D13: $19,582.83 | E13: 32.00% | G13: $6,224.68 | H13: $7,113.90 | I13: $253.54
B14: $108,281.68 | C14: $324,845.01 | D14: $28,245.36 | E14: 34.00% | G14: $7,113.91 | H14: $7,382.33 | I14: $217.61
B15: $324,845.02 | C15: $999,999,999.00 | D15: $101,876.90 | E15: 35.00% | G15: $7,382.34 | H15: $999,999,999.00 | I15: 0

Sheet CALCULO RETENCION
B2: SALARIO MINIMO CDMX | C2: =DATOS!C6 -> $96.22 | D2: UMA al 7 de enero de 2022
B4: SALARIO BASE DE COTIZACION | D4: =DATOS!C12 -> 180.6847
B5: VSM | D5: =DATOS!C13 -> 0.0000
D6: BIM 1 | E6: BIM 2 | F6: BIM 3 | G6: BIM 4 | H6: BIM 5 | I6: BIM 6
D7: 59 | E7: 61 | F7: 61 | G7: 62 | H7: 61 | I7: 61
C8: =D7*C10 -> 15 | D8: =$D$5/100 -> 0.0000% | E8: =$D$5/100 -> 0.0000% | F8: 0.0000% | G8: 0.0000% | H8: 0.0000% | I8: 0.0000%
D9: =DATOS!C15 -> 0 | E9: =DATOS!C16 -> 0 | F9: =DATOS!C17 -> 0 | G9: =DATOS!C18 -> 0 | H9: =DATOS!C19 -> 0 | I9: =DATOS!C20 -> 0
B10: 1 | C10: =(((($C$2*$D$5)*2)/D7))+(15/D7) -> 0.25 | D10: =(((($C$2*$D$5)*2)/D7)*(D7-D9))+IF(D7>D9,DATOS!$C$7,0) -> 0.00 | E10: =(((($C$2*$D$5)*2)/E7)*(E7-E9))+IF(E7>E9,DATOS!$C$7,0) -> 0.00 | F10: =(((($C$2*$D$5)*2)/F7)*(F7-F9))+IF(F7>F9,DATOS!$C$7,0) -> 0.00 | G10: =(((($C$2*$D$5)*2)/G7)*(G7-G9))+IF(G7>G9,DATOS!$C$7,0) -> 0.00 | H10: =(((($C$2*$D$5)*2)/H7)*(H7-H9))+IF(H7>H9,DATOS!$C$7,0) -> 0.00 | I10: =(((($C$2*$D$5)*2)/I7)*(I7-I9))+IF(I7>I9,DATOS!$C$7,0) -> 0.00
B11: 2 | C11: =(($D$5*2)/D7)+(15/D7) -> 0.25 | D11: =(($D$5*2)/D7)*(D7-D9)+IF(D7>D9,DATOS!$C$7,0) -> 0.00 | E11: =(($D$5*2)/E7)*(E7-E9)+IF(E7>E9,DATOS!$C$7,0) -> 0.00 | F11: =(($D$5*2)/F7)*(F7-F9)+IF(F7>F9,DATOS!$C$7,0) -> 0.00 | G11: =(($D$5*2)/G7)*(G7-G9)+IF(G7>G9,DATOS!$C$7,0) -> 0.00 | H11: =(($D$5*2)/H7)*(H7-H9)+IF(H7>H9,DATOS!$C$7,0) -> 0.00 | I11: =(($D$5*2)/I7)*(I7-I9)+IF(I7>I9,DATOS!$C$7,0) -> 0.00
B12: 3 | C12: =(($D$4*D8))+(15/D7) -> 0.25 | D12: =(($D$4*D8)*(D7-D9))+IF(D7>D9,DATOS!$C$7,0) -> 0.00 | E12: =(($D$4*E8)*(E7-E9))+IF(E7>E9,DATOS!$C$7,0) -> 0.00 | F12: =(($D$4*F8)*(F7-F9))+IF(F7>F9,DATOS!$C$7,0) -> 0.00 | G12: =(($D$4*G8)*(G7-G9))+IF(G7>G9,DATOS!$C$7,0) -> 0.00 | H12: =(($D$4*H8)*(H7-H9))+IF(H7>H9,DATOS!$C$7,0) -> 0.00 | I12: =(($D$4*I8)*(I7-I9))+IF(I7>I9,DATOS!$C$7,0) -> 0.00
B14: 1 | E14: =(((($C$2*$D$5)*2)/E11)*(E11-E13))+IF(E11>E13,DATOS!$C$7,0) ->  | F14: =(((($C$2*$D$5)*2)/F11)*(F11-F13))+IF(F11>F13,DATOS!$C$7,0) ->  | G14: =(((($C$2*$D$5)*2)/G11)*(G11-G13))+IF(G11>G13,DATOS!$C$7,0) ->  | H14: =(((($C$2*$D$5)*2)/H11)*(H11-H13))+IF(H11>H13,DATOS!$C$7,0) ->  | I14: =(((($C$2*$D$5)*2)/I11)*(I11-I13))+IF(I11>I13,DATOS!$C$7,0) -> 
B15: 2 | E15: =(($D$5*2)/E11)*(E11-E13)+IF(E11>E13,DATOS!$C$7,0) ->  | F15: =(($D$5*2)/F11)*(F11-F13)+IF(F11>F13,DATOS!$C$7,0) ->  | G15: =(($D$5*2)/G11)*(G11-G13)+IF(G11>G13,DATOS!$C$7,0) ->  | H15: =(($D$5*2)/H11)*(H11-H13)+IF(H11>H13,DATOS!$C$7,0) ->  | I15: =(($D$5*2)/I11)*(I11-I13)+IF(I11>I13,DATOS!$C$7,0) -> 
B16: 3 | E16: =(($D$4*E12)*(E11-E13))+IF(E11>E13,DATOS!$C$7,0) -> 0.00 | F16: =(($D$4*F12)*(F11-F13))+IF(F11>F13,DATOS!$C$7,0) -> 0.00 | G16: =(($D$4*G12)*(G11-G13))+IF(G11>G13,DATOS!$C$7,0) -> 0.00 | H16: =(($D$4*H12)*(H11-H13))+IF(H11>H13,DATOS!$C$7,0) -> 0.00 | I16: =(($D$4*I12)*(I11-I13))+IF(I11>I13,DATOS!$C$7,0) -> 0.00
D18: =(((($C$2*$D$5)*2)/D11)) -> 
